Cogmind - Beta 14 @@@ ROGUE MODE // 2024.09.02 @ 16:31:26 Player: STOMPAWARDAKKA Result: Destroyed by H-61 Shepherd via exploding Fusion Modulator Performance ------------- Evolutions (3) 1500 Regions Visited (6) 1200 Robots Destroyed (45) 225 Value Destroyed (1534) 1534 Prototype IDs (1) 20 Alien Tech Used (0) 0 Bonus (300) 300 TOTAL SCORE: 4779 Bonus ------- Aligned with FarCom 300 Cogmind --------- Core Integrity 0/700 Matter 275/300 Energy 60/100 System Corruption 7% Temperature Cool (24) Movement Core (100) Ox1 Location -7/Factory Parts ------- > --- POWER (1) -------- (None) > --- PROPULSION (3) --- (None) > --- UTILITY (5) ------ Signal Interpreter Hacking Suite > --- WEAPON (4) ------- Scythe (fused) Scythe > --- INVENTORY (5) ---- (None) Peak State ------------ > --- POWER ------------ Micro Nuclear Core > --- PROPULSION ------- Improved Carbon-fiber Leg Improved Carbon-fiber Leg Improved Carbon-fiber Leg > --- UTILITY ---------- Large Storage Unit Advanced Weight Redist. System Signal Interpreter Medium Reactive Plating Hacking Suite > --- WEAPON ----------- Firepult Flak Gun Power Maul > --- INVENTORY -------- Light Ion Engine Light Treads Light Treads Advanced Treads Arc Projector Arc Projector Heavy Flail Scythe Scythe Scythe [Rating: 58] Favorites ----------- Power Ion Engine Engine Ion Engine Power Core Micro Nuclear Core Propulsion Improved Carbon-fiber Leg Treads Light Treads Leg Improved Carbon-fiber Leg Utility Signal Interpreter Device Advanced Weight Redist. System Storage Large Storage Unit Processor Signal Interpreter Hackware Hacking Suite Protection Medium Reactive Plating Weapon Lightning Gun Energy Gun Lightning Gun Energy Cannon Firepult Ballistic Gun Flak Gun Launcher Mini Grenade Launcher Special Weapon Welding Torch Impact Weapon Power Maul Slashing Weapon Scythe Special Melee Weapon Datajack Build | -11 -10 -10 -10 -9 -8 -7 ------- Run | Yrd Mat Min Exi Min Mat Fac Slots Evolved 6 | . . . . . 4 2 Power . | . . . . . . . Propulsion 1 | . . . . . . 1 Utility 3 | . . . . . 2 1 Weapon 2 | . . . . . 2 . Parts Attached 60 | 4 8 3 2 1 19 23 Power 6 | . 1 . . . 2 3 Engine 5 | . 1 . . . 2 2 Core 1 | . . . . . . 1 Reactor . | . . . . . . . Propulsion 9 | 2 . . . . 2 5 Treads 3 | . . . . . . 3 Leg 6 | 2 . . . . 2 2 Wheel . | . . . . . . . Hover . | . . . . . . . Flight . | . . . . . . . Utility 9 | . 2 . . . 6 1 Device 1 | . . . . . . 1 Storage 1 | . . . . . 1 . Processor 1 | . 1 . . . . . Hackware 2 | . 1 . . . 1 . Protection 4 | . . . . . 4 . Artifact . | . . . . . . . Weapon 36 | 2 5 3 2 1 9 14 Energy Gun 16 | 2 3 1 1 . 4 5 Energy Cannon 4 | . . . 1 . 1 2 Ballistic Gun 2 | . . . . . 1 1 Ballistic Cannon . | . . . . . . . Launcher 4 | . . 1 . 1 2 . Special Weapon 1 | . . 1 . . . . Impact Weapon 3 | . . . . . . 3 Slashing Weapon 4 | . . . . . 1 3 Piercing Weapon . | . . . . . . . Special Melee Weapon 2 | . 2 . . . . . Unidentified Prototypes 1 | . . . 1 . . . Corrupted Parts 1 | . 1 . . . . . System Corruption 1 | . 1 . . . . . Parts Lost 27 | . 2 . . . 4 21 Power 3 | . . . . . . 3 Propulsion 5 | . . . . . . 5 Utility 6 | . 1 . . . 2 3 Weapon 13 | . 1 . . . 2 10 Highest Loss Streak 16 | . 1 . . . 2 16 To Critical Strikes . | . . . . . . . Average Slot Usage (%) 86 | . 79 84 79 79 84 90 Engine 7 | . 2 14 14 14 9 3 Core 1 | . . . . . . 2 Leg 21 | . 28 28 28 28 18 20 Device 2 | . . . . . . 6 Storage 5 | . . . . . 8 6 Processor 8 | . 7 14 14 14 9 7 Hackware 4 | . 13 . . . . 7 Protection 5 | . . . . . 10 6 Energy Gun 12 | . 22 7 6 14 9 14 Ballistic Gun 1 | . . . . . 1 2 Launcher 4 | . . 6 8 8 9 . Special Weapon 2 | . . 13 8 . . . Slashing Weapon 4 | . . . . . 7 5 Peak Build Rating 58 | 4 9 6 24 9 46 58 Average Rating 26 | 2 7 5 6 7 25 40 On Entrance 9 | . 4 6 6 7 9 35 Naked Turns . | . . . . . . . Heaviest Build 77 | 4 9 9 9 10 77 61 Greatest Support 63 | 20 20 20 20 20 36 63 Greatest Overweight (x) 17 | . . . . . 2 17 Average Overweight (x) . | . . . . . . . Largest Inventory Capacity 15 | 5 5 5 5 5 15 15 Average Capacity 11 | 5 5 5 5 5 13 14 Most Carried 15 | 4 4 5 5 5 15 13 Average Carried 8 | 2 2 4 4 4 10 10 Final Capacity 15 | 5 5 5 5 5 15 5 Final Carried 12 | 2 3 5 4 4 12 . Class Distribution -------------------- 72% | Mutant 26% | Skirmisher Dominant Class ---------------- Mutant | -10/Materials Mutant | -10/Mines Mutant | -10/Exiles Mutant | -9/Mines Mutant | -8/Materials Mutant | -7/Factory Resources | -11 -10 -10 -10 -9 -8 -7 ----------- Run | Yrd Mat Min Exi Min Mat Fac Matter Collected 1058 | 196 124 29 . . 439 270 Remotely . | . . . . . . . Salvage Created 1704 | . 299 34 . . 559 812 Parts 96 | . 15 4 . . 27 50 Haulers Intercepted . | . . . . . . . Recyclers Shooed 1 | . . . . . . 1 Parts Field Recycled . | . . . . . . . Retrieved Matter . | . . . . . . . Parts Self-Destructed . | . . . . . . . Prevented . | . . . . . . . Kills | -11 -10 -10 -10 -9 -8 -7 ------- Run | Yrd Mat Min Exi Min Mat Fac Combat Hostiles Destroyed 31 | . 3 3 . . 9 16 Melee 13 | . . . . . 3 10 Guns 5 | . 3 . . . 1 1 Cannons 1 | . . . . . 1 . AOE 7 | . . 3 . . 2 2 Classes Destroyed 13 | . 4 2 . . 4 3 Worker 1 | . . . . . 1 . Builder 5 | . . 1 . . 2 2 Recycler 1 | . 1 . . . . . Mechanic 1 | . . . . . . 1 Operator 1 | . 1 . . . . . Watcher 5 | . 3 . . . 1 1 Swarmer 7 | . . 3 . . . 4 Grunt 11 | . 3 . . . 5 3 Duelist 1 | . . . . . 1 . Sentry 3 | . . . . . 2 1 Specialist 1 | . . . . . . 1 Hunter 2 | . . . . . 1 1 Programmer 6 | . . . . . . 6 Best Kill Streak 9 | . 2 3 . . 9 5 Combat Bots Only 6 | . 2 3 . . 6 5 Max Kills in Single Turn 2 | . 1 1 . . 2 2 Gunslinging . | . . . . . . . Exploded 1 | . . 1 . . 1 1 Melee 1 | . . . . . 1 1 Uniques/NPCs Destroyed . | . . . . . . . Combat | -11 -10 -10 -10 -9 -8 -7 -------- Run | Yrd Mat Min Exi Min Mat Fac Hostile Shots Fired 355 | . 24 12 . . 81 238 Missed 101 | . 8 4 . . 19 70 Damage Taken 3955 | . 227 58 . . 973 2697 Core 985 | . 84 16 . . 147 738 Absorbed by Shields . | . . . . . . . Ignored by Resistances 324 | . . . . . 108 216 Core Remaining (%) 77 | 100 . . . 60 73 . Volleys Fired 82 | . 28 20 . . 17 17 Largest 3 | . 2 2 . . 2 3 Hottest 295 | . 80 80 . . 295 278 Shots Fired 119 | . 43 21 . . 20 35 Gun 90 | . 43 2 . . 12 33 Cannon 6 | . . . . . 4 2 Launcher 12 | . . 8 . . 4 . Special 11 | . . 11 . . . . Kinetic 18 | . . . . . 8 10 Thermal 20 | . 1 12 . . 5 2 Explosive 12 | . . 8 . . 4 . Electromagnetic 69 | . 42 1 . . 3 23 Robot Hit Streak 6 | . 6 1 . . 5 6 Robot Miss Streak 5 | . 2 1 . . 3 5 Penetration Max . | . . . . . . . Secondary Targets 1 | . 1 . . . . . Max Gunslinging Chain 1 | . 1 . . . . . Shots Hit Robots 110 | . 31 2 . . 24 53 Core Hits 78 | . 13 4 . . 20 41 Critical Kills 1 | . . . . . 1 . Critical Parts Destroyed 3 | . . . . . . 3 Critical Strikes 8 | . . . . . 2 6 Destroy 1 | . . . . . 1 . Smash 3 | . . . . . . 3 Sever 4 | . . . . . 1 3 Melee Attacks 66 | . 5 . . . 13 48 Impact 12 | . . . . . . 12 Slashing 49 | . . . . . 13 36 Piercing . | . . . . . . . Sneak Attacks 9 | . 5 . . . 1 3 Combat Hostiles . | . . . . . . . Follow-up Attacks 1 | . . . . . . 1 Damage Inflicted 3709 | . 428 231 . . 1051 1999 Guns 698 | . 387 11 . . 96 204 Cannons 150 | . . . . . 103 47 Explosions 1161 | . 41 220 . . 481 419 Melee 1700 | . . . . . 371 1329 Ramming . | . . . . . . . Kinetic 212 | . . . . . 56 156 Thermal 1009 | . 53 11 . . 479 466 Explosive 336 | . . 220 . . 116 . Electromagnetic 452 | . 375 . . . 29 48 Impact 471 | . . . . . . 471 Slashing 1229 | . . . . . 371 858 Piercing . | . . . . . . . Highest Corruption 7 | . 1 1 1 1 . 7 Average Corruption 2 | . 1 1 1 1 . 3 Corruption Purged . | . . . . . . . Corruption Blocked . | . . . . . . . Effects 38 | . 2 4 2 . . 30 Message Errors 12 | . 1 . . . . 11 Matter Fused 7 | . 1 2 . . . 4 Heat Flow Errors 5 | . . . 1 . . 4 Energy Discharges 2 | . . . 1 . . 1 Parts Rejected 1 | . . . . . . 1 Parts Fused 1 | . . . . . . 1 Data Loss (minor) 8 | . . 2 . . . 6 Misfires 1 | . . . . . . 1 Alerts 1 | . . . . . . 1 Overload Shots . | . . . . . . . Overflow Damage 199 | . . . . . 5 194 Projectiles 11 | . . . . . . 11 Explosions 5 | . . . . . 5 . Melee 183 | . . . . . . 183 Knockbacks 3 | . . . . . . 3 Impact 3 | . . . . . . 3 Kinetic . | . . . . . . . Secondary . | . . . . . . . Self-Inflicted Damage 46 | . 18 . . . 25 3 Shots 5 | . 1 . . . 3 1 Rammed . | . . . . . . . Targets Rammed . | . . . . . . . Kicked . | . . . . . . . Crushed . | . . . . . . . Highest Temperature 786 | . 96 18 176 . 786 461 Average Temperature 168 | . 37 12 93 . 341 118 Received Heat Transfer 768 | . 132 . . . 423 213 Effects 27 | . . . . . 25 2 Shutdowns 4 | . . . . . 3 1 Energy Bleed 3 | . . . . . 3 . Interference 5 | . . . . . 4 1 Matter Decay 5 | . . . . . 5 . Damage (minor) 1 | . . . . . 1 . Damage (major) 8 | . . . . . 8 . Damage (core) 1 | . . . . . 1 . Siege Activations . | . . . . . . . Robots Corrupted 1 | . . . . . . 1 Combat Hostiles 1 | . . . . . . 1 Parts Fried 1 | . 1 . . . . . Impact Corruptions 6 | . . . . . . 6 Robots Melted 4 | . . . . . 2 2 Combat Hostiles 4 | . . . . . 2 2 Parts Melted 22 | . 1 . . . 11 10 Heat Transferred 4445 | . 75 25 . . 2345 2000 Parts Sabotaged . | . . . . . . . Parts Stolen . | . . . . . . . Parts Stripped . | . . . . . . . Power Chain Reactions 1 | . 1 . . . . . Alert | -11 -10 -10 -10 -9 -8 -7 ------- Run | Yrd Mat Min Exi Min Mat Fac Peak Influence 256 | . 206 177 . . 226 256 Initial 79 | . . 79 . . . 6 Average 67 | . 70 82 . . 63 69 Maximum Alert Level 1 | . 1 . . . 1 1 Low Security (%) 92 | 100 96 100 . 100 87 93 Level 1 7 | . 3 . . . 12 6 Level 2 . | . . . . . . . Level 3 . | . . . . . . . Level 4 . | . . . . . . . Level 5 . | . . . . . . . High Security . | . . . . . . . Max Security . | . . . . . . . Squads Dispatched 14 | . . . . . 1 13 Investigation 1 | . . . . . 1 . Extermination 4 | . . . . . . 4 Reinforcement 3 | . . . . . . 3 Assault . | . . . . . . . Garrison 6 | . . . . . . 6 Intercept . | . . . . . . . Searches Triggered . | . . . . . . . Construction Impeded . | . . . . . . . Haulers Reinforced . | . . . . . . . Active Scanning Responses . | . . . . . . . Cargo Convoy Interrupts 1 | . . . . . . 1 Stealth | -11 -10 -10 -10 -9 -8 -7 --------- Run | Yrd Mat Min Exi Min Mat Fac Distress Signals . | . . . . . . . Communications Jammed . | . . . . . . . Distress Signals . | . . . . . . . Times Spotted 55 | . 11 3 . . 17 24 Peak Tracking Total 7 | . 3 3 . . 7 5 Tactical Retreats 6 | . 2 . . . 2 2 Traps | -11 -10 -10 -10 -9 -8 -7 ------- Run | Yrd Mat Min Exi Min Mat Fac Traps Triggered 4 | . . . . . 1 3 Indirectly . | . . . . . . . Trap Hack Attempts . | . . . . . . . Triggered . | . . . . . . . Disarmed . | . . . . . . . Reprogrammed . | . . . . . . . Reused . | . . . . . . . Traps Extracted . | . . . . . . . Installed . | . . . . . . . Triggered . | . . . . . . . Machines | -11 -10 -10 -10 -9 -8 -7 ---------- Run | Yrd Mat Min Exi Min Mat Fac Machines Disabled 1 | . . . . . . 1 Max in Single Turn 1 | . . . . . . 1 Machines Repaired . | . . . . . . . Machines Dismantled . | . . . . . . . Machines Sabotaged . | . . . . . . . Overloaded Fab Kills . | . . . . . . . Hacking | -11 -10 -10 -10 -9 -8 -7 --------- Run | Yrd Mat Min Exi Min Mat Fac Machines Accessed 5 | . . . . . 3 2 Terminals 5 | . . . . . 3 2 Fabricators . | . . . . . . . Repair Stations . | . . . . . . . Recycling Units . | . . . . . . . Scanalyzers . | . . . . . . . Garrison Access . | . . . . . . . Total Hacks 10 | . . . . . 6 4 Successful 2 | . . . . . 1 1 Failed 8 | . . . . . 5 3 Catastrophic 1 | . . . . . 1 . Database Lockouts . | . . . . . . . Manual 13 | . . . 1 . 6 6 Terminals 10 | . . . . . 6 4 Fabricators . | . . . . . . . Repair Stations . | . . . . . . . Recycling Units . | . . . . . . . Scanalyzers . | . . . . . . . Garrison Access . | . . . . . . . Terminal Hacks 2 | . . . . . 1 1 Unreport Threat 2 | . . . . . 1 1 Fabricator Hacks . | . . . . . . . Repair Station Hacks . | . . . . . . . Recycling Unit Hacks . | . . . . . . . Scanalyzer . | . . . . . . . Garrison Access Hacks . | . . . . . . . Unauthorized Hacks . | . . . . . . . Terminals . | . . . . . . . Fabricators . | . . . . . . . Repair Stations . | . . . . . . . Recycling Units . | . . . . . . . Scanalyzers . | . . . . . . . Garrison Access . | . . . . . . . Data Cores Recovered 1 | . 1 . . . . . Used . | . . . . . . . Hacking Detections 4 | . . . . . 2 2 Full Trace Events . | . . . . . . . Feedback Events . | . . . . . . . Feedback Blocked . | . . . . . . . Robot Schematics Acquired . | . . . . . . . Robots Built . | . . . . . . . Authchips . | . . . . . . . Time . | . . . . . . . Total Robot Build Rating . | . . . . . . . Part Schematics Acquired . | . . . . . . . Parts Built . | . . . . . . . Authchips . | . . . . . . . Time . | . . . . . . . Total Part Build Rating . | . . . . . . . Parts Repaired . | . . . . . . . Time . | . . . . . . . Parts Recycled . | . . . . . . . Recycled Matter . | . . . . . . . Retrieved Matter . | . . . . . . . Retrieved Components . | . . . . . . . Parts Scanalyzed . | . . . . . . . Part Schematics Acquired . | . . . . . . . Parts Damaged . | . . . . . . . Bothacking | -11 -10 -10 -10 -9 -8 -7 ------------ Run | Yrd Mat Min Exi Min Mat Fac Used RIF Installer . | . . . . . . . Robots Hacked 4 | . 4 . . . . . Non-combat 4 | . 4 . . . . . Combat . | . . . . . . . Robot Hacks Applied 4 | . 4 . . . . . no_distress 4 | . 4 . . . . . Relay Couplers Released . | . . . . . . . Fabnet Peak Effective % . | . . . . . . . Robots Rewired . | . . . . . . . Allies Hacked . | . . . . . . . Hacks Repelled . | . . . . . . . Allies | -11 -10 -10 -10 -9 -8 -7 -------- Run | Yrd Mat Min Exi Min Mat Fac Total Allies . | . . . . . . . Largest Group . | . . . . . . . Highest-Rated Group . | . . . . . . . Highest-Rated Ally . | . . . . . . . Total Orders . | . . . . . . . Ally Attacks . | . . . . . . . Total Damage . | . . . . . . . Kills . | . . . . . . . Allies Corrupted . | . . . . . . . Allies Melted . | . . . . . . . Intel | -11 -10 -10 -10 -9 -8 -7 ------- Run | Yrd Mat Min Exi Min Mat Fac Robot Analysis Total . | . . . . . . . Derelict Logs Recovered 3 | . . 3 . . . . Drone Launches . | . . . . . . . Drone Recoveries . | . . . . . . . Exploration | -11 -10 -10 -10 -9 -8 -7 ------------- Run | Yrd Mat Min Exi Min Mat Fac Turns Passed 4462 | 61 355 528 277 48 1284 1909 Spaces Moved 2135 | 51 195 358 226 39 495 771 Core 29 | 14 . . . . . 15 Treads 12 | . . . . . . 12 Legs 2094 | 37 195 358 226 39 495 744 Wheels . | . . . . . . . Hover . | . . . . . . . Flight . | . . . . . . . Fastest Speed 50 | 50 120 120 120 120 120 120 Average Speed 142 | 100 120 120 120 120 172 149 Slowest Speed 900 | 120 120 120 120 120 260 900 Overloaded Moves . | . . . . . . . Propulsion Burnouts . | . . . . . . . Robots Hopped . | . . . . . . . Cave-ins Triggered . | . . . . . . . Exploration Rate (%) 29 | 3 22 66 41 21 32 23 Regions Visited 6 Branch Regions 3 Pre-discovered Areas . | . . . . . . . Known Exits Taken 5 | . 1 1 1 1 1 . Unknown Exits Taken 1 | 1 . . . . . . Scrap Searched 1 | . . 1 . . . . Spaces Dug 25 | . . 23 . . . 2 Terrain Destroyed 107 | . 5 47 . . 53 2 Melee 2 | . . . . . . 2 Projectile . | . . . . . . . AOE 105 | . 5 47 . . 53 . Terrain Rammed . | . . . . . . . Walls Destroyed . | . . . . . . . Machines Disabled . | . . . . . . . Actions | -11 -10 -10 -10 -9 -8 -7 --------- Run | Yrd Mat Min Exi Min Mat Fac Total 3346 | 60 268 432 235 40 888 1423 Wait 922 | . 28 48 . . 310 536 Move 2129 | 50 194 357 225 38 494 771 Hop . | . . . . . . . Pick Up 49 | 6 5 3 2 1 24 8 Fast Attach . | . . . . . . . Attach 47 | 4 4 1 2 1 14 21 Detach 8 | . . . 1 . 4 3 Swap 13 | . 4 2 . . 5 2 Drop 16 | . . 1 5 . 7 3 Fire 82 | . 28 20 . . 17 17 Melee 65 | . 5 . . . 13 47 Ram . | . . . . . . . Kick . | . . . . . . . Crush . | . . . . . . . Escape Stasis 15 | . . . . . . 15 Rewire . | . . . . . . . Trap . | . . . . . . . Miscellaneous . | . . . . . . . Route ------- -11/Scrapyard -10/Materials -10/Mines (discovered 2 exits: *Mat / *Exi) -10/Exiles (discovered 2 exits: *Min x2) -9/Mines -8/Materials -7/Factory History --------- Turn | Location | Event 2 | -11/Scrapyard | Discovered new exit (range 16) 62 | -11/Scrapyard | Entered Materials 204 | -10/Materials | Discovered new exit (range 7) 312 | -10/Materials | Build established: Mutant 416 | -10/Materials | Identified exit to Mines 417 | -10/Materials | Entered Mines 420 | -10/Mines | Learned Materials stockpile data 506 | -10/Mines | Discovered new exit (range 6) 511 | -10/Mines | Identified exit to Materials 767 | -10/Mines | Identified exit to Exiles 939 | -10/Mines | Deemed a non-threat by the Exiles lab entrance 945 | -10/Mines | Entered Exiles 946 | -10/Exiles | Identified exit to Mines 985 | -10/Exiles | Met 8R-AWN 1014 | -10/Exiles | Met EX-HEX 1049 | -10/Exiles | Met EX-BIN 1062 | -10/Exiles | Aligned with FarCom system 1063 | -10/Exiles | Given EX-Vault access code 1092 | -10/Exiles | Opened EX-Vault 1099 | -10/Exiles | Found Prototype Energy Cannon 1101 | -10/Exiles | Identified Firepult 1134 | -10/Exiles | Warned to stay clear of 0b10 Research branches 1222 | -10/Exiles | Left Exiles lab with Firepult 1222 | -10/Exiles | Entered Mines 1244 | -9/Mines | Received a Rocket Launcher from a helpful Derelict 1264 | -9/Mines | Discovered new exit (range 6) 1269 | -9/Mines | Identified exit to Materials 1270 | -9/Mines | Entered Materials 1270 | -8/Materials | Evolved 4 slots: Utility x2, Weapon x2 1653 | -8/Materials | Build established: Skirmisher 1978 | -8/Materials | Build established: Mutant 2159 | -8/Materials | Discovered new exit (range 10) 2482 | -8/Materials | Identified exit to Factory 2554 | -8/Materials | Entered Factory 2554 | -7/Factory | Evolved 2 slots: Propulsion x1, Utility x1 2695 | -7/Factory | Build established: Skirmisher 3114 | -7/Factory | Garrison activated, responded to threat 3418 | -7/Factory | Build established: Mutant 3843 | -7/Factory | Garrison activated, responded to threat 4025 | -7/Factory | Cargo convoy interrupted 4439 | -7/Factory | Core integrity fell below 50% 4463 | -7/Factory | Destroyed by H-61 Shepherd via exploding Fusion Modulator Last Messages --------------- 04438_ K-01 Serf cleans the Fusion Modulator. 04438_ Lrg. Storage Unit destroyed. 04439_ U-05 Engineer builds a Wall. 04441_ U-05 Engineer destroyed. 04441_ Knocked back. 04443_ K-01 Serf cleans the Fusion Modulator. 04444_ Hvy. Flail destroyed. 04444_ R-06 Scavenger collects Terrain Scanner. 04445_ U-05 Engineer builds a Wall. 04447_ K-01 Serf destroyed. 04447_ R-06 Scavenger collects Wheel. 04447_ M-13 Machinist repairs VSS Leg. 04451_ R-06 Scavenger collects Unknown Processor. 04456_ R-06 Scavenger collects Wheel. 04458_ Power Maul destroyed. 04458_ Mic. Nuclear Core destroyed. 04461_ System corrupted: Scythe fused. 04461_ Lgt. Ion Engine destroyed. 04463_ Fusion Modulator explodes. Map ----- +----------------------------------------------------+ | ?????????????????????????????????????????????????? | | ?????????????????????????????????????????????????? | | ?????????????????????????????????????????????????? | | ?????????????????????????????????????????????????? | | ?????????????????????????????????????????????????? | | ?????????????????????????????????????????????????? | | ?????????????????????????????????????????????????? | | ?????????????????????????????????????????????????? | | ?????????????????????????????????????????????????? | | ?????????????????????????????????????????????????? | | ???????????????????????###???????????????????????? | | ?????????????????????+ ???????????????????????? | | ?????????????????????# ???????????????????????? | | ???????????????#+##### ##+#???????????????????? | | ???????????????# #???????????????????? | | ???????????????# #???????????????????? | | ???????????????# ##??????????????????? | | ???????????????# ##?????????????????? | | ???????????????? !!! ??????????????????? | | ????????????????? !! #??????????????????? | | ?????????????????? !! #??????????????????? | | ???????????????????# ##????????????????## | | ???????????????????# ;#????????? ??????# | | ???????????????????# ;##??????? ??????# | | ?????????########### ; #??????? ??????#= | | ???????? x@x ;#########+####???# | | ???????? #???# | | ???????? #???# | | ??????????####### % #???# | | ????????????????# r r #???#" | | ????????????????# Hu #???#" | | ????????????????# ####;;;;;######k#h #???#" | | ????????????????## #???# # #???# | | ?????????????????# ????# % %# ###### | | ?????????????????#?????# """m"""% # | | ???????????????????????# """ """ % #% | | ???????????????????????# """ """ + """"""""" | | ???????????????????????# # | | ???????????????????????# """ """ # """"""""" | | ???????????????????????? """ """ # | | ???????????????????????? ?"" """ # """"""""" | | ??????????????????????????? !# | | ???????????????????????????? # ] | | ??????????????????????????? # ######## | | ???????????????????????????########## #??????? | | ????????????????????????????????????####+##??????? | | ?????????????????????????????????????????????????? | | ?????????????????????????????????????????????????? | | ?????????????????????????????????????????????????? | | ?????????????????????????????????????????????????? | +----------------------------------------------------+ Best States ------------- Heat Dissipation 34 Energy Generation 15 Energy Capacity 250 Matter Stores 300 Matter Capacity 300 Sight Range 16 Terrain Scan Density 10 Additional Mass Support 9 Armor Coverage 375 Resistance: KI 30 Evasion (%) 55 Recoil Reduction 3 Offensive Hacking 10 Item Schematics ----------------- None Robot Schematics ------------------ None Fabricated ------------ Nothing Alien Tech Used ----------------- None Achievements -------------- None Challenges ------------ None Game ------ Seed WeldingImprovedTreads Manual? 0 Play Time 00:38:32 Cumulative 30.8 hours Start 2024.09.02 @ 15:55:04 End 2024.09.02 @ 16:31:26 Sessions 1 Manual Loads 0 Difficulty Rogue Special Mode None Game No. 37 Rogue 5 Adventurer 32 Explorer 0 Win Type - Total 0 Types 0/0/0/0/0/0/0/0/0 Lore% 15 Gallery% 23 Achievement% 21 Wizard Run 0 Options --------- Layout 1 ASCII 0 Keyboard 0 Movement Numpad Keybinds 0 Fullscreen 1 Font 24/Smallcaps Map View 50x35 Zoom Use 0% Tactical HUD 1 Map Filters NONE Filters NONE Steam 1 RUN: 39433bb0-e53f-4dd1-bbb6-d89cab81df07